[Event "Titled Tuesday Blitz May 23 Early 2023"]
[White "Fantinel, Thibault"]
[Black "Pinto, Daniel"]
[WhiteFideId "663395"]
[BlackFideId "3303144"]
[WhiteElo "2316"]
[BlackElo "2145"]
[Result "1-0"]
[Round "07"]
[TimeControl "180+2"]
[Date "2023.05.23"]
[WhiteClock "0:01:08"]
[BlackClock "0:00:02"]

1. c4 {[%clk 0:03:00]}  c5 {[%clk 0:02:56]} 2. g3 {[%clk 0:03:00]}  Nc6 {[%clk 0:02:56]} 3. Bg2 {[%clk 0:03:01]}  g6 {[%clk 0:02:56]} 4. Nc3 {[%clk 0:03:01]}  Bg7 {[%clk 0:02:57]} 5. d3 {[%clk 0:03:01]}  e5 {[%clk 0:02:58]} 6. Nf3 {[%clk 0:02:55]}  Nge7 {[%clk 0:02:56]} 7. Nd2 {[%clk 0:02:55]}  O-O {[%clk 0:02:56]} 8. Nf1 {[%clk 0:02:56]}  Rb8 {[%clk 0:02:50]} 9. Bg5 {[%clk 0:02:49]}  f6 {[%clk 0:02:49]} 10. Bd2 {[%clk 0:02:49]}  a6 {[%clk 0:02:48]} 11. Ne3 {[%clk 0:02:44]}  b5 {[%clk 0:02:48]} 12. b3 {[%clk 0:02:45]}  bxc4 {[%clk 0:02:43]} 13. bxc4 {[%clk 0:02:42]}  d6 {[%clk 0:02:42]} 14. O-O {[%clk 0:02:42]}  Be6 {[%clk 0:02:30]} 15. Qa4 {[%clk 0:02:39]}  Nd4 {[%clk 0:02:18]} 16. Rfe1 {[%clk 0:02:34]}  f5 {[%clk 0:01:19]} 17. Ned5 {[%clk 0:02:26]}  Nxd5 {[%clk 0:01:02]} 18. Nxd5 {[%clk 0:02:26]}  Bd7 {[%clk 0:00:32]} 19. Qxa6 {[%clk 0:02:14]}  Nc2 {[%clk 0:00:31]} 20. Qxd6 {[%clk 0:02:10]}  Nxe1 {[%clk 0:00:26]} 21. Rxe1 {[%clk 0:02:07]}  Rf7 {[%clk 0:00:18]} 22. Bc3 {[%clk 0:02:04]}  Qf8 {[%clk 0:00:13]} 23. Bxe5 {[%clk 0:01:59]}  Qxd6 {[%clk 0:00:10]} 24. Bxd6 {[%clk 0:01:59]}  Rb2 {[%clk 0:00:11]} 25. Bxc5 {[%clk 0:01:54]}  Rxa2 {[%clk 0:00:10]} 26. Bf3 {[%clk 0:01:31]}  h5 {[%clk 0:00:09]} 27. h4 {[%clk 0:01:29]}  Kh7 {[%clk 0:00:08]} 28. Rb1 {[%clk 0:01:28]}  Bc6 {[%clk 0:00:02]} 29. Nb4 {[%clk 0:01:28]}  Bxf3 {[%clk 0:00:01]} 30. Nxa2 {[%clk 0:01:27]}  Bxe2 {[%clk 0:00:02]} 31. Nc1 {[%clk 0:01:23]}  Bf3 {[%clk 0:00:03]} 32. Be3 {[%clk 0:01:19]}  Rd7 {[%clk 0:00:03]} 33. Rb3 {[%clk 0:01:17]}  Rc7 {[%clk 0:00:03]} 34. c5 {[%clk 0:01:15]}  Bf8 {[%clk 0:00:02]} 35. d4 {[%clk 0:01:14]}  Bd5 {[%clk 0:00:01]} 36. Rb1 {[%clk 0:01:11]}  Bg7 {[%clk 0:00:02]} 37. Nd3 {[%clk 0:01:09]}  Ra7 {[%clk 0:00:02]} 38. Nf4 {[%clk 0:01:08]}  Be4 {[%clk 0:00:02]} 39. Rc1 {[%clk 0:01:09]}  Bf8 {[%clk 0:00:02]} 40. c6 {[%clk 0:01:08]}  Bd6 {[%clk 0:00:03]} 41. d5 {[%clk 0:01:08]}  Ra2 {[%clk 0:00:03]} 42. c7 {[%clk 0:01:07]}  Bxc7 {[%clk 0:00:02]} 43. Rxc7+ {[%clk 0:01:08]}  Kg8 {[%clk 0:00:03]} 44. Rc1 {[%clk 0:01:09]}  Kf8 {[%clk 0:00:03]} 45. Nxg6+ {[%clk 0:01:07]}  Ke8 {[%clk 0:00:03]} 46. Nf4 {[%clk 0:01:08]}  Kd7 {[%clk 0:00:04]} 47. Nxh5 {[%clk 0:01:08]}  Bxd5 {[%clk 0:00:02]} 48. Nf4 {[%clk 0:01:08]} 1-0


[Site "https://www.chess.com"]

[Event "Titled Tuesday Blitz May 23 Early 2023"]
[White "cristianserban1"]
[Black "GMFYHR1"]
[WhiteElo "2531"]
[BlackElo "2418"]
[Result "0-1"]
[Round "07"]
[TimeControl "180+2"]
[Date "2023.05.23"]
[WhiteClock "0:01:28"]
[BlackClock "0:01:43"]

1. d4 {[%clk 0:03:00]}  Nf6 {[%clk 0:02:58]} 2. Bf4 {[%clk 0:03:01]}  e6 {[%clk 0:02:56]} 3. e3 {[%clk 0:03:01]}  d5 {[%clk 0:02:56]} 4. Nf3 {[%clk 0:03:01]}  c5 {[%clk 0:02:57]} 5. Nbd2 {[%clk 0:03:01]}  Bd6 {[%clk 0:02:56]} 6. dxc5 {[%clk 0:02:50]}  Bxc5 {[%clk 0:02:56]} 7. c4 {[%clk 0:02:51]}  O-O {[%clk 0:02:52]} 8. Be2 {[%clk 0:02:47]}  Nc6 {[%clk 0:02:50]} 9. O-O {[%clk 0:02:45]}  Re8 {[%clk 0:02:51]} 10. Ne5 {[%clk 0:02:44]}  Bd6 {[%clk 0:02:42]} 11. Nxc6 {[%clk 0:02:41]}  bxc6 {[%clk 0:02:43]} 12. Bxd6 {[%clk 0:02:40]}  Qxd6 {[%clk 0:02:44]} 13. Qc2 {[%clk 0:02:40]}  e5 {[%clk 0:02:42]} 14. Rfd1 {[%clk 0:02:34]}  e4 {[%clk 0:02:30]} 15. cxd5 {[%clk 0:02:28]}  cxd5 {[%clk 0:02:28]} 16. Bb5 {[%clk 0:02:18]}  Bd7 {[%clk 0:02:24]} 17. Bxd7 {[%clk 0:02:14]}  Qxd7 {[%clk 0:02:24]} 18. Nb3 {[%clk 0:02:14]}  Qg4 {[%clk 0:02:22]} 19. Nd4 {[%clk 0:02:07]}  Rac8 {[%clk 0:02:18]} 20. Qd2 {[%clk 0:02:03]}  Qh4 {[%clk 0:02:07]} 21. h3 {[%clk 0:02:01]}  Qg5 {[%clk 0:01:59]} 22. Rdc1 {[%clk 0:01:58]}  Nd7 {[%clk 0:01:54]} 23. b4 {[%clk 0:01:56]}  Ne5 {[%clk 0:01:54]} 24. Rxc8 {[%clk 0:01:50]}  Rxc8 {[%clk 0:01:54]} 25. Rc1 {[%clk 0:01:51]}  Rd8 {[%clk 0:01:44]} 26. Nc6 {[%clk 0:01:28]}  Nf3+ {[%clk 0:01:43]} 0-1


[Site "https://www.chess.com"]

[Event "Titled Tuesday Blitz May 23 Early 2023"]
[White "Rodriguez Santiago, Jaime"]
[Black "Staudenhocker43"]
[WhiteFideId "3100898"]
[WhiteElo "2025"]
[BlackElo "2524"]
[Result "1/2-1/2"]
[Round "07"]
[TimeControl "180+2"]
[Date "2023.05.23"]
[WhiteClock "0:00:32"]
[BlackClock "0:00:29"]

1. c4 {[%clk 0:03:00]}  Nf6 {[%clk 0:02:58]} 2. Nc3 {[%clk 0:02:59]}  g6 {[%clk 0:02:58]} 3. g3 {[%clk 0:02:59]}  Bg7 {[%clk 0:02:57]} 4. Bg2 {[%clk 0:03:00]}  O-O {[%clk 0:02:57]} 5. e4 {[%clk 0:03:00]}  d6 {[%clk 0:02:57]} 6. Nge2 {[%clk 0:03:00]}  c5 {[%clk 0:02:58]} 7. O-O {[%clk 0:03:00]}  Nc6 {[%clk 0:02:58]} 8. d3 {[%clk 0:03:00]}  Rb8 {[%clk 0:02:57]} 9. h3 {[%clk 0:02:59]}  a6 {[%clk 0:02:57]} 10. a4 {[%clk 0:02:59]}  Bd7 {[%clk 0:02:51]} 11. Be3 {[%clk 0:02:58]}  Ne8 {[%clk 0:02:47]} 12. d4 {[%clk 0:02:49]}  cxd4 {[%clk 0:02:47]} 13. Nxd4 {[%clk 0:02:49]}  Nc7 {[%clk 0:02:47]} 14. Rb1 {[%clk 0:02:46]}  Nxd4 {[%clk 0:02:43]} 15. Bxd4 {[%clk 0:02:46]}  Bxd4 {[%clk 0:02:44]} 16. Qxd4 {[%clk 0:02:45]}  b5 {[%clk 0:02:43]} 17. cxb5 {[%clk 0:02:29]}  axb5 {[%clk 0:02:43]} 18. axb5 {[%clk 0:02:21]}  Nxb5 {[%clk 0:02:41]} 19. Nxb5 {[%clk 0:02:21]}  Bxb5 {[%clk 0:02:40]} 20. Rfc1 {[%clk 0:02:20]}  Qb6 {[%clk 0:02:39]} 21. Qxb6 {[%clk 0:02:18]}  Rxb6 {[%clk 0:02:40]} 22. Rc7 {[%clk 0:02:18]}  e6 {[%clk 0:02:27]} 23. b4 {[%clk 0:02:15]}  Rfb8 {[%clk 0:02:24]} 24. f4 {[%clk 0:01:45]}  Kf8 {[%clk 0:02:14]} 25. f5 {[%clk 0:01:39]}  gxf5 {[%clk 0:02:13]} 26. exf5 {[%clk 0:01:38]}  exf5 {[%clk 0:02:13]} 27. Bd5 {[%clk 0:01:35]}  Be8 {[%clk 0:02:12]} 28. Rf1 {[%clk 0:01:29]}  Rxb4 {[%clk 0:01:47]} 29. Rxf5 {[%clk 0:01:27]}  Rb1+ {[%clk 0:01:26]} 30. Kf2 {[%clk 0:01:23]}  R8b2+ {[%clk 0:01:25]} 31. Ke3 {[%clk 0:01:03]}  Re1+ {[%clk 0:01:24]} 32. Kd3 {[%clk 0:00:57]}  Re5 {[%clk 0:01:04]} 33. Rxe5 {[%clk 0:00:37]}  dxe5 {[%clk 0:01:05]} 34. Ke4 {[%clk 0:00:37]}  Re2+ {[%clk 0:00:50]} 35. Kf5 {[%clk 0:00:36]}  Kg7 {[%clk 0:00:46]} 36. Re7 {[%clk 0:00:33]}  Kf8 {[%clk 0:00:46]} 37. Rc7 {[%clk 0:00:33]}  Kg7 {[%clk 0:00:39]} 38. Re7 {[%clk 0:00:33]}  Kf8 {[%clk 0:00:29]} 39. Rc7 {[%clk 0:00:32]} 1/2-1/2


[Site "https://www.chess.com"]

[Event "Titled Tuesday Blitz May 23 Early 2023"]
[White "Sukandar, Irine Kharisma"]
[Black "Smith, Shreyas"]
[WhiteFideId "7101937"]
[BlackFideId "7400713"]
[WhiteElo "2315"]
[BlackElo "2151"]
[Result "1-0"]
[Round "07"]
[TimeControl "180+2"]
[Date "2023.05.23"]
[WhiteClock "0:01:49"]
[BlackClock "0:00:00"]

1. c4 {[%clk 0:03:00]}  e6 {[%clk 0:00:17]} 2. Nc3 {[%clk 0:02:59]}  d5 {[%clk 0:00:16]} 3. cxd5 {[%clk 0:02:58]}  exd5 {[%clk 0:00:16]} 4. d4 {[%clk 0:02:59]}  a6 {[%clk 0:00:16]} 5. Nf3 {[%clk 0:02:57]}  c6 {[%clk 0:00:16]} 6. Qc2 {[%clk 0:02:52]}  Nf6 {[%clk 0:00:15]} 7. Bg5 {[%clk 0:02:51]}  Be6 {[%clk 0:00:15]} 8. e3 {[%clk 0:02:50]}  h6 {[%clk 0:00:14]} 9. Bh4 {[%clk 0:02:50]}  Bd6 {[%clk 0:00:13]} 10. Bd3 {[%clk 0:02:49]}  Nbd7 {[%clk 0:00:13]} 11. O-O {[%clk 0:02:40]}  O-O {[%clk 0:00:14]} 12. a3 {[%clk 0:02:29]}  Re8 {[%clk 0:00:13]} 13. Rfe1 {[%clk 0:02:21]}  Qc7 {[%clk 0:00:13]} 14. Bg3 {[%clk 0:02:18]}  Bxg3 {[%clk 0:00:12]} 15. hxg3 {[%clk 0:02:18]}  Qd6 {[%clk 0:00:12]} 16. Ne2 {[%clk 0:02:14]}  Bg4 {[%clk 0:00:09]} 17. Nd2 {[%clk 0:02:10]}  Bxe2 {[%clk 0:00:08]} 18. Rxe2 {[%clk 0:02:08]}  h5 {[%clk 0:00:08]} 19. Bf5 {[%clk 0:02:07]}  Rad8 {[%clk 0:00:07]} 20. Rae1 {[%clk 0:02:05]}  g6 {[%clk 0:00:06]} 21. Bd3 {[%clk 0:02:00]}  Kg7 {[%clk 0:00:06]} 22. Nf3 {[%clk 0:01:51]}  Rh8 {[%clk 0:00:06]} 23. e4 {[%clk 0:01:50]}  dxe4 {[%clk 0:00:05]} 24. Bxe4 {[%clk 0:01:51]}  Nxe4 {[%clk 0:00:06]} 25. Rxe4 {[%clk 0:01:51]}  Nf6 {[%clk 0:00:00]} 26. Re7 {[%clk 0:01:49]} 1-0


[Site "https://www.chess.com"]

[Event "Titled Tuesday Blitz May 23 Early 2023"]
[White "Hamley, Ryan"]
[Black "Klepikov, Nikita"]
[WhiteFideId "30959497"]
[BlackFideId "24145220"]
[WhiteElo "2510"]
[BlackElo "2025"]
[Result "0-1"]
[Round "07"]
[TimeControl "180+2"]
[Date "2023.05.23"]
[WhiteClock "0:00:00"]
[BlackClock "0:01:05"]

1. d4 {[%clk 0:03:00]}  Nf6 {[%clk 0:02:59]} 2. c4 {[%clk 0:03:00]}  d6 {[%clk 0:02:59]} 3. Nc3 {[%clk 0:03:00]}  e5 {[%clk 0:02:59]} 4. Nf3 {[%clk 0:02:54]}  Nbd7 {[%clk 0:02:59]} 5. g3 {[%clk 0:02:54]}  g6 {[%clk 0:02:59]} 6. Bg2 {[%clk 0:02:55]}  Bg7 {[%clk 0:02:59]} 7. O-O {[%clk 0:02:55]}  O-O {[%clk 0:02:59]} 8. e4 {[%clk 0:02:53]}  exd4 {[%clk 0:02:58]} 9. Nxd4 {[%clk 0:02:53]}  Re8 {[%clk 0:02:56]} 10. Re1 {[%clk 0:02:46]}  Nc5 {[%clk 0:02:53]} 11. h3 {[%clk 0:02:38]}  h6 {[%clk 0:02:52]} 12. b4 {[%clk 0:02:31]}  Ne6 {[%clk 0:02:50]} 13. Be3 {[%clk 0:02:28]}  Ng5 {[%clk 0:02:47]} 14. Bxg5 {[%clk 0:02:24]}  hxg5 {[%clk 0:02:48]} 15. Qd2 {[%clk 0:02:22]}  g4 {[%clk 0:02:41]} 16. h4 {[%clk 0:02:19]}  Nd7 {[%clk 0:02:32]} 17. Bf1 {[%clk 0:01:56]}  Ne5 {[%clk 0:02:13]} 18. Kg2 {[%clk 0:01:55]}  Nf3 {[%clk 0:02:09]} 19. Nxf3 {[%clk 0:01:22]}  gxf3+ {[%clk 0:02:07]} 20. Kh2 {[%clk 0:01:22]}  Be5 {[%clk 0:01:58]} 21. Kg1 {[%clk 0:01:12]}  Kg7 {[%clk 0:01:55]} 22. Nd5 {[%clk 0:01:01]}  Rh8 {[%clk 0:01:48]} 23. Qe3 {[%clk 0:01:00]}  Bg4 {[%clk 0:01:42]} 24. Nf4 {[%clk 0:00:28]}  Rxh4 {[%clk 0:01:39]} 25. Bg2 {[%clk 0:00:22]}  fxg2 {[%clk 0:01:19]} 26. Nxg2 {[%clk 0:00:14]}  Rh7 {[%clk 0:01:11]} 27. Rac1 {[%clk 0:00:09]}  Qh8 {[%clk 0:01:07]} 28. f3 {[%clk 0:00:09]}  Bxg3 {[%clk 0:01:05]} 29. Qd4+ {[%clk 0:00:01]}  f6 {[%clk 0:01:06]} 30. Kf1 {[%clk 0:00:00]}  Bxf3 {[%clk 0:01:05]} 0-1


[Site "https://www.chess.com"]

[Event "Titled Tuesday Blitz May 23 Early 2023"]
[White "Berezin, Viktor"]
[Black "Estremera Panos, Sergio"]
[WhiteFideId "14107872"]
[BlackFideId "2200864"]
[WhiteElo "2310"]
[BlackElo "2253"]
[Result "1-0"]
[Round "07"]
[TimeControl "180+2"]
[Date "2023.05.23"]
[WhiteClock "0:01:41"]
[BlackClock "0:00:37"]

1. d4 {[%clk 0:03:00]}  d5 {[%clk 0:02:58]} 2. c4 {[%clk 0:03:00]}  e6 {[%clk 0:02:58]} 3. Nf3 {[%clk 0:03:01]}  Nf6 {[%clk 0:02:59]} 4. g3 {[%clk 0:03:01]}  Bb4+ {[%clk 0:02:58]} 5. Nbd2 {[%clk 0:03:01]}  O-O {[%clk 0:02:50]} 6. Bg2 {[%clk 0:03:01]}  dxc4 {[%clk 0:02:48]} 7. Qc2 {[%clk 0:03:01]}  b5 {[%clk 0:02:46]} 8. O-O {[%clk 0:02:59]}  a5 {[%clk 0:02:44]} 9. Ne5 {[%clk 0:02:48]}  Ra7 {[%clk 0:02:38]} 10. a4 {[%clk 0:02:47]}  Qxd4 {[%clk 0:02:30]} 11. Ndf3 {[%clk 0:02:46]}  Qb6 {[%clk 0:02:10]} 12. axb5 {[%clk 0:02:37]}  Qxb5 {[%clk 0:02:10]} 13. Nxc4 {[%clk 0:02:31]}  Ba6 {[%clk 0:02:08]} 14. b3 {[%clk 0:02:24]}  Nbd7 {[%clk 0:02:02]} 15. Nd4 {[%clk 0:02:23]}  Qc5 {[%clk 0:01:44]} 16. Nc6 {[%clk 0:02:18]}  Bxc4 {[%clk 0:01:25]} 17. bxc4 {[%clk 0:02:06]}  Ra6 {[%clk 0:01:23]} 18. Nxb4 {[%clk 0:02:05]}  Qxb4 {[%clk 0:01:20]} 19. Ba3 {[%clk 0:02:06]}  Qb6 {[%clk 0:01:13]} 20. c5 {[%clk 0:01:50]}  Qb5 {[%clk 0:00:37]} 21. Rab1 {[%clk 0:01:41]} 1-0


[Site "https://www.chess.com"]

[Event "Titled Tuesday Blitz May 23 Early 2023"]
[White "Arabidze, Meri"]
[Black "Sargissyan, Sargis"]
[WhiteFideId "13604040"]
[BlackFideId "13303210"]
[WhiteElo "2405"]
[BlackElo "2109"]
[Result "1/2-1/2"]
[Round "07"]
[TimeControl "180+2"]
[Date "2023.05.23"]
[WhiteClock "0:00:08"]
[BlackClock "0:00:12"]

1. Nf3 {[%clk 0:03:00]}  Nf6 {[%clk 0:02:58]} 2. g3 {[%clk 0:03:01]}  g6 {[%clk 0:02:56]} 3. Bg2 {[%clk 0:03:02]}  Bg7 {[%clk 0:02:54]} 4. O-O {[%clk 0:03:03]}  O-O {[%clk 0:02:54]} 5. d4 {[%clk 0:03:04]}  d5 {[%clk 0:02:52]} 6. a4 {[%clk 0:03:05]}  c5 {[%clk 0:02:51]} 7. a5 {[%clk 0:03:02]}  cxd4 {[%clk 0:02:50]} 8. Nxd4 {[%clk 0:03:02]}  e5 {[%clk 0:02:50]} 9. Nb3 {[%clk 0:02:58]}  Be6 {[%clk 0:02:39]} 10. Nc5 {[%clk 0:02:56]}  Qc8 {[%clk 0:02:36]} 11. Nxe6 {[%clk 0:02:56]}  Qxe6 {[%clk 0:02:35]} 12. Nc3 {[%clk 0:02:56]}  e4 {[%clk 0:02:27]} 13. Nb5 {[%clk 0:02:55]}  Na6 {[%clk 0:02:24]} 14. Nd4 {[%clk 0:02:50]}  Qd7 {[%clk 0:02:22]} 15. c3 {[%clk 0:02:50]}  Nc5 {[%clk 0:02:20]} 16. Bf4 {[%clk 0:02:50]}  Ne6 {[%clk 0:02:16]} 17. Be3 {[%clk 0:02:43]}  Ng4 {[%clk 0:02:13]} 18. Nxe6 {[%clk 0:02:43]}  Qxe6 {[%clk 0:02:14]} 19. Bd4 {[%clk 0:02:39]}  Ne5 {[%clk 0:02:10]} 20. f4 {[%clk 0:02:27]}  exf3 {[%clk 0:02:09]} 21. exf3 {[%clk 0:02:27]}  Nc6 {[%clk 0:02:06]} 22. Bxg7 {[%clk 0:02:25]}  Kxg7 {[%clk 0:02:06]} 23. f4 {[%clk 0:02:26]}  Rad8 {[%clk 0:02:05]} 24. a6 {[%clk 0:02:22]}  b6 {[%clk 0:02:02]} 25. f5 {[%clk 0:02:10]}  Qe3+ {[%clk 0:02:01]} 26. Kh1 {[%clk 0:02:10]}  f6 {[%clk 0:01:55]} 27. Qa4 {[%clk 0:01:54]}  Ne5 {[%clk 0:01:51]} 28. Rae1 {[%clk 0:01:54]}  Qc5 {[%clk 0:01:48]} 29. Qd4 {[%clk 0:01:40]}  g5 {[%clk 0:01:47]} 30. Rxe5 {[%clk 0:01:35]}  fxe5 {[%clk 0:01:41]} 31. Qxe5+ {[%clk 0:01:36]}  Rf6 {[%clk 0:01:31]} 32. h4 {[%clk 0:01:09]}  h6 {[%clk 0:01:14]} 33. g4 {[%clk 0:00:59]}  d4 {[%clk 0:01:10]} 34. cxd4 {[%clk 0:00:47]}  Rxd4 {[%clk 0:01:09]} 35. Qg3 {[%clk 0:00:45]}  gxh4 {[%clk 0:01:01]} 36. Qf3 {[%clk 0:00:29]}  Rd7 {[%clk 0:00:47]} 37. Qf4 {[%clk 0:00:22]}  Qd6 {[%clk 0:00:45]} 38. Qe3 {[%clk 0:00:20]}  Qg3 {[%clk 0:00:45]} 39. Qe8 {[%clk 0:00:08]}  Rc7 {[%clk 0:00:31]} 40. Bd5 {[%clk 0:00:07]}  Qh3+ {[%clk 0:00:29]} 41. Kg1 {[%clk 0:00:07]}  Qg3+ {[%clk 0:00:29]} 42. Kh1 {[%clk 0:00:08]}  Qh3+ {[%clk 0:00:14]} 43. Kg1 {[%clk 0:00:08]}  Qg3+ {[%clk 0:00:12]} 44. Kh1 {[%clk 0:00:08]} 1/2-1/2


[Site "https://www.chess.com"]

[Event "Titled Tuesday Blitz May 23 Early 2023"]
[White "Melikhov, Evgeny V."]
[Black "Reprintsev, Alexander"]
[WhiteFideId "4122046"]
[BlackFideId "14100541"]
[WhiteElo "2158"]
[BlackElo "2218"]
[Result "0-1"]
[Round "07"]
[TimeControl "180+2"]
[Date "2023.05.23"]
[WhiteClock "0:00:13"]
[BlackClock "0:01:16"]

1. d4 {[%clk 0:03:00]}  d5 {[%clk 0:02:57]} 2. c4 {[%clk 0:03:00]}  e5 {[%clk 0:02:57]} 3. dxe5 {[%clk 0:03:00]}  d4 {[%clk 0:02:55]} 4. Nf3 {[%clk 0:03:01]}  Nc6 {[%clk 0:02:55]} 5. g3 {[%clk 0:03:01]}  Nge7 {[%clk 0:02:55]} 6. Bg2 {[%clk 0:03:01]}  Ng6 {[%clk 0:02:55]} 7. Bg5 {[%clk 0:02:57]}  Qd7 {[%clk 0:02:44]} 8. O-O {[%clk 0:02:53]}  h6 {[%clk 0:02:44]} 9. Bc1 {[%clk 0:02:53]}  Be7 {[%clk 0:02:44]} 10. Nbd2 {[%clk 0:02:48]}  O-O {[%clk 0:02:43]} 11. Nb3 {[%clk 0:02:41]}  Rd8 {[%clk 0:02:43]} 12. e3 {[%clk 0:02:13]}  d3 {[%clk 0:02:40]} 13. Nbd4 {[%clk 0:01:38]}  Ncxe5 {[%clk 0:02:37]} 14. Nxe5 {[%clk 0:01:33]}  Nxe5 {[%clk 0:02:36]} 15. b3 {[%clk 0:01:25]}  c5 {[%clk 0:02:36]} 16. Nf3 {[%clk 0:01:23]}  Nxf3+ {[%clk 0:02:34]} 17. Qxf3 {[%clk 0:01:12]}  Bf6 {[%clk 0:02:33]} 18. Rb1 {[%clk 0:01:12]}  d2 {[%clk 0:02:28]} 19. Ba3 {[%clk 0:01:09]}  Qc7 {[%clk 0:02:05]} 20. Bb2 {[%clk 0:01:04]}  Bxb2 {[%clk 0:01:54]} 21. Rxb2 {[%clk 0:01:05]}  Qe5 {[%clk 0:01:51]} 22. Rc2 {[%clk 0:00:53]}  Bf5 {[%clk 0:01:49]} 23. e4 {[%clk 0:00:53]}  Bxe4 {[%clk 0:01:45]} 24. Qxe4 {[%clk 0:00:53]}  Qxe4 {[%clk 0:01:45]} 25. Bxe4 {[%clk 0:00:53]}  d1=Q {[%clk 0:01:45]} 26. Rxd1 {[%clk 0:00:54]}  Rxd1+ {[%clk 0:01:45]} 27. Kg2 {[%clk 0:00:54]}  Rd7 {[%clk 0:01:44]} 28. Bd5 {[%clk 0:00:52]}  Re8 {[%clk 0:01:40]} 29. f4 {[%clk 0:00:47]}  Ree7 {[%clk 0:01:37]} 30. Kf2 {[%clk 0:00:44]}  b6 {[%clk 0:01:37]} 31. Rd2 {[%clk 0:00:39]}  g6 {[%clk 0:01:36]} 32. h4 {[%clk 0:00:38]}  Kg7 {[%clk 0:01:35]} 33. Rc2 {[%clk 0:00:35]}  f5 {[%clk 0:01:32]} 34. Rd2 {[%clk 0:00:35]}  h5 {[%clk 0:01:31]} 35. Rc2 {[%clk 0:00:34]}  Rd8 {[%clk 0:01:31]} 36. Rd2 {[%clk 0:00:29]}  a5 {[%clk 0:01:30]} 37. Rb2 {[%clk 0:00:26]}  Rde8 {[%clk 0:01:30]} 38. a3 {[%clk 0:00:25]}  Re1 {[%clk 0:01:27]} 39. b4 {[%clk 0:00:25]}  Ra1 {[%clk 0:01:21]} 40. bxc5 {[%clk 0:00:24]}  bxc5 {[%clk 0:01:21]} 41. Rb7+ {[%clk 0:00:23]}  Kh6 {[%clk 0:01:20]} 42. Rc7 {[%clk 0:00:20]}  Ra2+ {[%clk 0:01:20]} 43. Kf1 {[%clk 0:00:16]}  a4 {[%clk 0:01:19]} 44. Rxc5 {[%clk 0:00:15]}  Re3 {[%clk 0:01:18]} 45. Ra5 {[%clk 0:00:14]}  Rc3 {[%clk 0:01:16]} 46. Rxa4 {[%clk 0:00:13]}  Rc1# {[%clk 0:01:16]} 0-1


[Site "https://www.chess.com"]

[Event "Titled Tuesday Blitz May 23 Early 2023"]
[White "Jovic, Stanoje"]
[Black "Goswami, Vedant"]
[WhiteFideId "905020"]
[BlackFideId "5003725"]
[WhiteElo "2236"]
[BlackElo "2011"]
[Result "0-1"]
[Round "07"]
[TimeControl "180+2"]
[Date "2023.05.23"]
[WhiteClock "0:00:57"]
[BlackClock "0:01:10"]

1. c4 {[%clk 0:03:00]}  d6 {[%clk 0:02:56]} 2. g3 {[%clk 0:03:00]}  Bd7 {[%clk 0:02:53]} 3. Bg2 {[%clk 0:03:00]}  Qc8 {[%clk 0:02:53]} 4. Nc3 {[%clk 0:02:59]}  g6 {[%clk 0:02:53]} 5. b4 {[%clk 0:02:54]}  Bg7 {[%clk 0:02:52]} 6. Bb2 {[%clk 0:02:54]}  h5 {[%clk 0:02:46]} 7. h4 {[%clk 0:02:53]}  Nh6 {[%clk 0:02:45]} 8. Qb3 {[%clk 0:02:46]}  Nc6 {[%clk 0:02:38]} 9. Nf3 {[%clk 0:02:37]}  O-O {[%clk 0:02:19]} 10. b5 {[%clk 0:02:30]}  Ne5 {[%clk 0:02:11]} 11. Nxe5 {[%clk 0:02:27]}  Bxe5 {[%clk 0:02:11]} 12. Nd5 {[%clk 0:02:24]}  Re8 {[%clk 0:01:59]} 13. Bxe5 {[%clk 0:02:23]}  dxe5 {[%clk 0:01:58]} 14. Qc3 {[%clk 0:02:08]}  f6 {[%clk 0:01:55]} 15. a4 {[%clk 0:01:58]}  Nf5 {[%clk 0:01:53]} 16. Be4 {[%clk 0:01:50]}  c6 {[%clk 0:01:48]} 17. Bxf5 {[%clk 0:01:47]}  Bxf5 {[%clk 0:01:46]} 18. Ne3 {[%clk 0:01:44]}  Rd8 {[%clk 0:01:37]} 19. O-O {[%clk 0:01:39]}  Rd4 {[%clk 0:01:32]} 20. d3 {[%clk 0:01:33]}  Qd7 {[%clk 0:01:25]} 21. bxc6 {[%clk 0:01:27]}  bxc6 {[%clk 0:01:23]} 22. Rab1 {[%clk 0:01:24]}  Rd8 {[%clk 0:01:23]} 23. Rb2 {[%clk 0:01:18]}  e4 {[%clk 0:01:21]} 24. dxe4 {[%clk 0:01:15]}  Bxe4 {[%clk 0:01:20]} 25. Nd5 {[%clk 0:01:06]}  Qh3 {[%clk 0:01:12]} 26. Nf4 {[%clk 0:00:57]}  Qh1# {[%clk 0:01:10]} 0-1


[Site "https://www.chess.com"]

[Event "Titled Tuesday Blitz May 23 Early 2023"]
[White "Topalov, Aleksandar"]
[Black "Rodchenkov, Sergey D."]
[WhiteFideId "925659"]
[BlackFideId "4168712"]
[WhiteElo "2151"]
[BlackElo "2277"]
[Result "0-1"]
[Round "07"]
[TimeControl "180+2"]
[Date "2023.05.23"]
[WhiteClock "0:00:02"]
[BlackClock "0:00:39"]

1. b3 {[%clk 0:02:34]}  Nf6 {[%clk 0:02:57]} 2. Bb2 {[%clk 0:02:33]}  d5 {[%clk 0:02:58]} 3. Nf3 {[%clk 0:02:32]}  Bg4 {[%clk 0:02:58]} 4. g3 {[%clk 0:02:31]}  c6 {[%clk 0:02:58]} 5. Bg2 {[%clk 0:02:31]}  Nbd7 {[%clk 0:02:59]} 6. O-O {[%clk 0:02:32]}  e6 {[%clk 0:02:58]} 7. d3 {[%clk 0:02:32]}  h6 {[%clk 0:02:58]} 8. Nbd2 {[%clk 0:02:32]}  Be7 {[%clk 0:02:58]} 9. c4 {[%clk 0:02:30]}  O-O {[%clk 0:02:58]} 10. a3 {[%clk 0:02:31]}  a5 {[%clk 0:02:59]} 11. Ra2 {[%clk 0:02:31]}  Bf5 {[%clk 0:02:55]} 12. Qa1 {[%clk 0:02:29]}  Bh7 {[%clk 0:02:53]} 13. Bc3 {[%clk 0:02:26]}  Nc5 {[%clk 0:02:51]} 14. b4 {[%clk 0:02:07]}  Na4 {[%clk 0:02:51]} 15. Be5 {[%clk 0:02:06]}  Ne8 {[%clk 0:02:46]} 16. bxa5 {[%clk 0:01:50]}  f6 {[%clk 0:02:37]} 17. Bc3 {[%clk 0:01:44]}  Nxc3 {[%clk 0:02:36]} 18. Qxc3 {[%clk 0:01:43]}  Qxa5 {[%clk 0:02:37]} 19. Qxa5 {[%clk 0:01:42]}  Rxa5 {[%clk 0:02:37]} 20. Rb1 {[%clk 0:01:42]}  Nd6 {[%clk 0:02:37]} 21. Nd4 {[%clk 0:01:37]}  Rfa8 {[%clk 0:02:13]} 22. Nxe6 {[%clk 0:01:19]}  dxc4 {[%clk 0:02:12]} 23. Ne4 {[%clk 0:00:45]}  Bxe4 {[%clk 0:02:08]} 24. dxe4 {[%clk 0:00:43]}  Kf7 {[%clk 0:02:01]} 25. Nd4 {[%clk 0:00:27]}  Rxa3 {[%clk 0:02:00]} 26. Rxa3 {[%clk 0:00:27]}  Rxa3 {[%clk 0:02:01]} 27. f4 {[%clk 0:00:27]}  c3 {[%clk 0:01:41]} 28. e5 {[%clk 0:00:27]}  Nb5 {[%clk 0:01:01]} 29. Nxb5 {[%clk 0:00:26]}  cxb5 {[%clk 0:01:01]} 30. Bd5+ {[%clk 0:00:10]}  Ke8 {[%clk 0:00:56]} 31. e6 {[%clk 0:00:10]}  b4 {[%clk 0:00:50]} 32. Kf2 {[%clk 0:00:08]}  Bc5+ {[%clk 0:00:40]} 33. Kg2 {[%clk 0:00:08]}  c2 {[%clk 0:00:38]} 34. Rc1 {[%clk 0:00:07]}  Rc3 {[%clk 0:00:39]} 35. Be4 {[%clk 0:00:02]}  b3 {[%clk 0:00:39]} 0-1


[Site "https://www.chess.com"]